Cogmind - Beta 16 @@@ ROGUE MODE // 2025.11.04 @ 04:12:04 Player: shapeshifter Result: Destroyed by S-27 Virus with Autogun Performance ------------- Evolutions (6) 3000 Regions Visited (15) 3000 Robots Destroyed (98) 490 Value Destroyed (3120) 3120 Prototype IDs (31) 620 Alien Tech Used (0) 0 Bonus (1053) 1053 TOTAL SCORE: 11283 Bonus ------- High Alert Combat Kills 281 Follower Combat Kills 2448 Network Hubs Disabled 200 Met Imprinter 300 Was Imprinted 300 Built Enhanced Grunts 300 A7 Reached Mainframe 300 Friendly Fire -3076 Cogmind --------- Core Integrity 0/1150 Matter 260/300 Energy 2/100 System Corruption 6% Temperature Cool (0) Movement Hovering (66) Location -4/Upper Caves Parts ------- > --- POWER (2) -------- (None) > --- PROPULSION (7) --- Gyrokinetic Inverter Improved Gyrokinetic Inverter > --- UTILITY (7) ------ Enhanced Optical Array Advanced Signal Interpreter Graphene Brace > --- WEAPON (3) ------- CR-A16's Pointy Stick > --- INVENTORY (5) ---- Advanced Gravity Neutralizer Experimental EM Shield Advanced Datajack Peak State ------------ > --- POWER ------------ Micro Fission Core Zionite Heavy DM Reactor > --- PROPULSION ------- Linear Gravjet Combat Gravmag System Improved Linear Gravjet Antigrav Array Antigrav Array > --- UTILITY ---------- Experimental Heat Sink Large Storage Unit Enhanced Optical Array Experimental Targeting Computer Core Analyzer Improved Transmission Jammer Zionite Weapon Casing > --- WEAPON ----------- Advanced KE Penetrator Advanced KE Penetrator Advanced Datajack > --- INVENTORY -------- Neutrino Core Zionite Light DM Reactor Improved Gyrokinetic Inverter Improved Linear Gravjet Experimental Heat Sink Zionite Biocell Advanced Gravity Neutralizer Tactical Coordination Suite Experimental Phase Shifter Experimental EM Shield Advanced System Restoration Module EMDS CR-A16's Pointy Stick GAL Module [Rating: 134] Favorites ----------- Power Light Nuclear Core Engine Improved Ion Engine Power Core Light Nuclear Core Reactor Zionite Light DM Reactor Propulsion Light Treads Treads Light Treads Wheel Compact Wheel Hover Unit Linear Gravjet Utility Large Storage Unit Device Energy Filter Storage Large Storage Unit Processor Enhanced Optical Array Hackware Makeshift System Shield Protection Centrium Medium Armor Plating Weapon Heavy Beamcaster Energy Gun Heavy Beamcaster Energy Cannon Disruptor Cannon Ballistic Gun Autogun Ballistic Cannon Improved Light Cannon Special Weapon Improved Plasma Cutter Piercing Weapon CR-A16's Pointy Stick Special Melee Weapon Improved Datajack Build | -11 -10 -10 -9 -9 -7 -6 -6 -5 -5 -5 -5 -5 -4 -4 -4 ------- Run | Yrd Mat Min Mat Min Zio Pro Fac Fac Ext Cet Arc Hub Fac Upp Upp Slots Evolved 12 | . . . 2 . . . 6 2 . . . . 2 . . Power 1 | . . . . . . . 1 . . . . . . . . Propulsion 5 | . . . . . . . 2 2 . . . . 1 . . Utility 5 | . . . 2 . . . 2 . . . . . 1 . . Weapon 1 | . . . . . . . 1 . . . . . . . . Parts Attached 97 | 7 . 3 13 . 4 3 8 20 10 6 4 6 10 3 . Power 14 | 1 . 1 2 . . 1 . 2 4 . . 1 2 . . Engine 5 | 1 . 1 1 . . 1 . 1 . . . . . . . Core 6 | . . . 1 . . . . 1 3 . . 1 . . . Reactor 3 | . . . . . . . . . 1 . . . 2 . . Propulsion 27 | 2 . 1 3 . . 1 3 9 1 1 2 . 4 . . Treads 9 | 2 . . 2 . . 1 3 1 . . . . . . . Leg . | . . . . . . . . . . . . . . . . Wheel 2 | . . 1 1 . . . . . . . . . . . . Hover 16 | . . . . . . . . 8 1 1 2 . 4 . . Flight . | . . . . . . . . . . . . . . . . Utility 31 | 2 . . 2 . 2 1 2 8 1 1 2 4 4 2 . Device 17 | 1 . . . . 2 . 1 4 1 . 2 2 2 2 . Storage 3 | 1 . . 1 . . . . . . . . . 1 . . Processor 7 | . . . . . . 1 . 4 . . . 1 1 . . Hackware 1 | . . . . . . . 1 . . . . . . . . Protection 3 | . . . 1 . . . . . . 1 . 1 . . . Artifact . | . . . . . . . . . . . . . . . . Weapon 25 | 2 . 1 6 . 2 . 3 1 4 4 . 1 . 1 . Energy Gun 6 | 1 . 1 . . 2 . 1 . 1 . . . . . . Energy Cannon 2 | . . . . . . . . . . 1 . . . 1 . Ballistic Gun 10 | 1 . . 3 . . . 1 . 2 3 . . . . . Ballistic Cannon 3 | . . . 3 . . . . . . . . . . . . Launcher . | . . . . . . . . . . . . . . . . Special Weapon 1 | . . . . . . . . . 1 . . . . . . Impact Weapon . | . . . . . . . . . . . . . . . . Slashing Weapon . | . . . . . . . . . . . . . . . . Piercing Weapon 1 | . . . . . . . 1 . . . . . . . . Special Melee Weapon 2 | . . . . . . . . 1 . . . 1 . . . Unidentified Prototypes 7 | . . . 1 . . . . . . 2 . 3 . 1 . Corrupted Parts 4 | . . . . . . . 1 . . 3 . . . . . System Corruption 10 | . . . . . . . 2 . . 8 . . . . . Parts Lost 38 | . 2 1 5 . . 2 . . 3 . 2 2 18 2 1 Power 8 | . 1 . 1 . . 1 . . . . . 1 4 . . Propulsion 11 | . . . 2 . . . . . 2 . 1 . 5 1 . Utility 12 | . 1 . 1 . . 1 . . . . 1 . 7 1 . Weapon 7 | . . 1 1 . . . . . 1 . . 1 2 . 1 Highest Loss Streak 11 | . 1 1 3 . . 1 . . 2 . 2 2 11 1 1 To Critical Strikes 2 | . . . . . . . . . 1 . . 1 . . . Average Backups 10 | 3 6 5 7 7 11 12 12 13 13 13 12 13 11 3 3 Power 1 | . 1 . . 1 1 . 1 . 2 2 2 2 1 . . Propulsion . | 1 2 2 1 . . . . 1 2 1 1 2 1 . . Utility 3 | . 1 1 1 1 2 4 4 4 5 6 5 6 7 2 2 Weapon 4 | 1 1 1 2 4 7 6 5 4 2 3 1 1 1 . . Tool/Special . | . . . . . . . . . . . . . . . . Unused Backups 21 | . . . 1 1 2 1 . 8 2 1 1 1 2 . 1 Power 1 | . . . . . . . . 1 . . . . . . . Propulsion . | . . . . . . . . . . . . . . . . Utility 10 | . . . . . . . . 3 2 1 . 1 2 . 1 Weapon 8 | . . . 1 1 2 1 . 3 . . . . . . . Tool/Special 2 | . . . . . . . . 1 . . 1 . . . . Average Slot Usage (%) 79 | . 89 83 67 65 77 97 76 92 99 95 90 87 87 38 33 Engine 3 | . 12 14 8 . . 7 6 9 . . . . . . . Core 5 | . . . 2 11 11 3 . . 7 5 5 6 5 . . Treads 14 | . 28 19 10 21 22 22 20 20 . . . . . . . Wheel 1 | . . 8 10 . . . . . . . . . . . . Hover 7 | . . . . . . . . 9 34 33 25 23 30 12 10 Device 9 | . 5 . . . 15 20 12 13 11 11 14 10 12 6 5 Storage 8 | . 14 14 11 11 11 11 6 5 5 5 5 5 5 . . Processor 5 | . . . . . . 10 6 7 17 16 11 11 12 10 10 Energy Gun 6 | . 14 12 . . 7 22 14 12 7 . . . . . . Ballistic Gun 8 | . 14 14 4 22 9 . 1 4 5 5 17 14 5 . . Ballistic Cannon 2 | . . . 16 . . . . . . . . . . . . Peak Build Rating 134 | 7 7 6 12 13 31 34 54 96 103 118 124 123 134 61 56 Average Rating 43 | 5 6 5 10 12 21 33 47 74 99 100 119 121 113 46 41 On Entrance 49 | . 7 5 6 12 8 31 32 54 96 99 118 123 119 44 44 Avg Prop Armor Cover (%) 6 | . . 13 . . . . . . . . . . . 3 3 Naked Turns . | . . . . . . . . . . . . . . . . Heaviest Build 71 | 13 13 14 42 31 39 41 45 59 65 71 71 70 71 8 24 Greatest Support 124 | 40 40 40 43 43 43 43 96 124 66 71 75 75 86 34 23 Greatest Overweight (x) 12 | . . . 2 . . . 12 2 1 . . . . . 1 Average Overweight (x) . | . . . . . . . . . . . . . . . . Largest Inventory Capacity 15 | 8 8 8 15 15 15 15 15 15 15 15 15 15 15 5 5 Average Capacity 14 | 7 8 8 14 15 15 15 15 15 15 15 15 15 14 5 5 Most Carried 15 | 6 7 6 11 10 15 15 15 15 15 15 15 15 15 5 5 Average Carried 10 | 3 6 5 7 7 11 13 13 14 14 14 14 14 13 4 4 Final Capacity 15 | 8 8 8 15 15 15 15 15 15 15 15 15 15 5 5 5 Final Carried 15 | 5 7 5 5 10 14 14 14 15 15 15 15 15 5 4 3 Class Distribution -------------------- 52% | Mutant 16% | Derelict-Mutant 7% | Derelict-Skirmisher 6% | Commander-Mutant 5% | Sprinter 5% | Commander-Gunner Dominant Class ---------------- Mutant | -10/Materials Mutant | -10/Mines Mutant | -9/Materials Mutant | -9/Mines Mutant | -7/Zion Derelict-Mutant | -6/Proximity Caves Derelict-Skirmisher | -6/Factory Derelict-Skirmisher | -5/Factory Sprinter | -5/Extension Commander-Mutant | -5/Cetus Commander-Gunner | -5/Archives Commander-Gunner | -5/Hub_04(d) Scavenger-Sprinter | -4/Factory Mutant | -4/Upper Caves Mutant | -4/Upper Caves Resources | -11 -10 -10 -9 -9 -7 -6 -6 -5 -5 -5 -5 -5 -4 -4 -4 ----------- Run | Yrd Mat Min Mat Min Zio Pro Fac Fac Ext Cet Arc Hub Fac Upp Upp Matter Collected 3267 | 285 80 . 518 358 46 58 107 66 821 52 336 339 89 57 55 Remotely . | . . . . . . . . . . . . . . . . Salvage Created 3672 | 151 358 18 499 244 . 110 . 121 1188 157 408 274 89 . 55 Parts 204 | 10 26 . 35 33 . 6 . 6 39 13 24 7 3 . 2 Haulers Intercepted 3 | . . . 2 . . . . . 1 . . . . . . Recyclers Shooed 3 | . . . 1 . . . . . 1 . . . 1 . . Parts Field Recycled . | . . . . . . . . . . . . . . . . Retrieved Matter . | . . . . . . . . . . . . . . . . Parts Self-Destructed 21 | . . . . . . 15 . . . . . . . 4 2 Prevented 1 | . . . . . . 1 . . . . . . . . . Parts Restored . | . . . . . . . . . . . . . . . . Kills | -11 -10 -10 -9 -9 -7 -6 -6 -5 -5 -5 -5 -5 -4 -4 -4 ------- Run | Yrd Mat Min Mat Min Zio Pro Fac Fac Ext Cet Arc Hub Fac Upp Upp Combat Hostiles Destroyed 68 | . 8 1 19 12 . 2 . 3 14 1 2 4 1 . 1 Melee 2 | . . . . . . . . . . . . . 1 . 1 Guns 46 | . 8 1 1 12 . 2 . 3 13 . 2 4 . . . Cannons 18 | . . . 18 . . . . . . . . . . . . Classes Destroyed 14 | 3 3 1 3 . . 2 . 1 1 . . . . . . Worker 6 | 1 1 . 2 2 . . . . . . . . . . . Builder 4 | . . . 1 . . . . . 2 . . . 1 . . Tunneler 3 | 2 . . . 1 . . . . . . . . . . . Hauler 3 | . . . 2 . . . . . 1 . . . . . . Recycler 3 | 1 1 . . . . . . . 1 . . . . . . Operator 8 | . . . . . . . . 1 1 . 6 . . . . Watcher 3 | . 1 . 1 . . . . . 1 . . . . . . Swarmer 25 | . 3 . 7 12 . . . 2 . . . . . . 1 Grunt 27 | . 5 . 9 . . . . 1 10 . . 2 . . . Sentry 9 | . . . 3 . . . . . 2 . 2 1 1 . . Hunter 1 | . . . . . . 1 . . . . . . . . . Programmer 1 | . . . . . . 1 . . . . . . . . . Behemoth 2 | . . . . . . . . . 2 . . . . . . Cetus Guard 1 | . . . . . . . . . . 1 . . . . . Lightning 1 | . . . . . . . . . . . . 1 . . . Decomposer 1 | . . . . . . . . . . . . . . . 1 Assembled 1 | . . 1 . . . . . . . . . . . . . Best Kill Streak 7 | 3 5 1 7 3 . 1 . 2 4 1 2 3 2 . 1 Combat Bots Only 5 | . 3 1 5 3 . 1 . 2 4 1 2 3 1 . 1 Max Kills in Single Turn 2 | 1 2 1 2 2 . 1 . 2 2 1 1 1 1 . 1 Gunslinging 1 | . . . . 1 . . . . 1 . . . . . . Exploded . | . . . . . . . . . . . . . . . . Melee 1 | . . . . . . . . . . . . . 1 . 1 Uniques/NPCs Destroyed 1 | . . . . . . . . . . 1 . . . . . A7 (-5/Cetus) Combat | -11 -10 -10 -9 -9 -7 -6 -6 -5 -5 -5 -5 -5 -4 -4 -4 -------- Run | Yrd Mat Min Mat Min Zio Pro Fac Fac Ext Cet Arc Hub Fac Upp Upp Hostile Shots Fired 539 | . 45 10 101 36 . 35 2 . 51 4 8 31 123 53 40 Missed 185 | . 13 3 25 12 . 13 1 . 19 . . 8 52 26 13 Hits 354 | . 32 7 76 24 . 22 1 . 32 4 8 23 71 27 27 Melee 1 | . . . . . . . . . 1 . . . . . . Projectile 353 | . 32 7 76 24 . 22 1 . 31 4 8 23 71 27 27 AOE 4 | . . . . . . . . . . . . 1 3 . . Critical Strikes 20 | . 2 . 1 . . . . . 6 . . 7 2 1 1 Actively Blocked 2 | . . . . . . . . . . . . . . 1 1 Part Disruptions 2 | . . . . . . . . . . . . 1 1 . . Damage Taken 6654 | . 396 94 825 192 . 382 16 . 598 149 302 912 1847 543 398 Core 1696 | . 36 . 125 17 . 134 . . 104 57 30 38 553 346 256 Absorbed by Shields 231 | . . . . . . . . . 206 25 . . . . . Redirected to Shielding 169 | . . . . . . . . . . . . 63 106 . . Core Remaining (%) 78 | 100 . 85 . . . 31 100 . . . . 77 . . . Volleys Fired 245 | 5 30 2 63 17 . 12 8 6 52 9 21 16 4 . . Largest 3 | 2 2 2 2 2 . 2 3 3 3 1 3 3 2 . . Hottest 242 | 70 70 60 66 46 . 162 242 242 242 81 105 105 70 . . Shots Fired 526 | 10 60 4 119 35 . 24 20 16 120 9 61 42 6 . . Gun 404 | 10 60 4 6 35 . 24 20 16 120 . 61 42 6 . . Cannon 122 | . . . 113 . . . . . . 9 . . . . . Launcher . | . . . . . . . . . . . . . . . . Special . | . . . . . . . . . . . . . . . . Kinetic 361 | 5 30 2 119 35 . . 1 3 57 . 61 42 6 . . Thermal 156 | 5 30 2 . . . 24 19 13 63 . . . . . . Explosive . | . . . . . . . . . . . . . . . . Electromagnetic 9 | . . . . . . . . . . 9 . . . . . Robot Hit Streak 12 | 5 5 8 9 9 . 3 5 3 12 8 5 9 1 . . Robot Miss Streak 5 | 1 3 . 5 3 . 4 2 2 5 2 5 3 2 . . Penetration Max 1 | . . . . . . . . . 1 . . . . . . Secondary Targets 10 | . 3 . . 2 . . . . 2 . 1 2 . . . Max Gunslinging Chain 1 | . 1 . . 1 . . . . 1 . 1 1 . . . Shots Hit Robots 355 | 7 37 4 56 20 . 12 12 7 109 24 29 27 8 . 3 Core Hits 163 | 5 18 2 29 15 . 4 1 5 44 8 13 15 2 . 2 Critical Kills 7 | . . . . . . . . . . . 5 2 . . . Critical Parts Destroyed 9 | . . . . . . . . 1 2 . 5 1 . . . Critical Strikes 30 | . 1 . 2 . . 2 . 1 8 1 11 3 1 . . Burn 9 | . 1 . . . . 2 . . 6 . . . . . . Destroy 17 | . . . . . . . . 1 2 . 11 3 . . . Blast 2 | . . . 2 . . . . . . . . . . . . Impale 2 | . . . . . . . . . . 1 . . 1 . . Melee Attacks 78 | . . . . . . . 4 1 29 17 . 2 16 . 9 Impact . | . . . . . . . . . . . . . . . . Slashing . | . . . . . . . . . . . . . . . . Piercing 48 | . . . . . . . 4 . . 17 . 2 16 . 9 Sneak Attacks 52 | . . . . . . . 1 1 29 17 . . 3 . 1 Combat Hostiles . | . . . . . . . . . . . . . . . . Follow-up Attacks . | . . . . . . . . . . . . . . . . Damage Inflicted 8427 | 82 488 52 1495 308 . 316 306 230 2213 929 795 657 413 . 143 Guns 5507 | 82 488 52 77 308 . 316 237 230 2213 . 795 657 52 . . Cannons 1510 | . . . 1410 . . . . . . 100 . . . . . Explosions . | . . . . . . . . . . . . . . . . Melee 1402 | . . . . . . . 69 . . 829 . . 361 . 143 Ramming 8 | . . . 8 . . . . . . . . . . . . Kinetic 4836 | 33 249 28 1487 308 . . . 40 1187 . 795 657 52 . . Thermal 2081 | 49 239 24 . . . 316 237 190 1026 . . . . . . Explosive . | . . . . . . . . . . . . . . . . Electromagnetic 100 | . . . . . . . . . . 100 . . . . . Impact . | . . . . . . . . . . . . . . . . Slashing . | . . . . . . . . . . . . . . . . Piercing 1402 | . . . . . . . 69 . . 829 . . 361 . 143 Highest Corruption 11 | . 3 3 3 3 3 . 2 . 3 11 11 5 6 6 6 Average Corruption 3 | . 2 3 2 3 3 . 2 . 2 5 8 2 4 6 6 Corruption Purged 11 | . . . . . . . . . . . 11 . . . . Corruption Blocked . | . . . . . . . . . . . . . . . . Effects 88 | . . 4 22 23 1 . 8 . 2 7 11 . 4 5 1 Message Errors 14 | . . . 5 3 . . . . . 1 3 . 2 . . Matter Fused 20 | . . 2 4 4 . . 3 . . 2 2 . 1 1 1 Heat Flow Errors 11 | . . 1 4 2 . . . . . 2 . . 1 1 . Energy Discharges 11 | . . 1 3 2 . . . . 1 2 1 . . 1 . Parts Rejected 2 | . . . . 1 . . . . . . . . . 1 . Parts Fused 2 | . . . . 1 . . 1 . . . . . . . . Data Loss (minor) 14 | . . . 4 5 . . 2 . . . 3 . . . . Data Loss (major) 2 | . . . . 1 1 . . . . . . . . . . Misfires 4 | . . . 1 2 . . 1 . . . . . . . . Alerts 4 | . . . . 1 . . 1 . 1 . . . . 1 . Weapon Failures 4 | . . . 1 1 . . . . . . 2 . . . . Overload Shots . | . . . . . . . . . . . . . . . . Overflow Damage 84 | . . . 19 . . . . . . . . . 65 . . Projectiles 19 | . . . 19 . . . . . . . . . . . . Explosions . | . . . . . . . . . . . . . . . . Melee 65 | . . . . . . . . . . . . . 65 . . Knockbacks 1 | . . . 1 . . . . . . . . . . . . Impact . | . . . . . . . . . . . . . . . . Kinetic 1 | . . . 1 . . . . . . . . . . . . Secondary . | . . . . . . . . . . . . . . . . Self-Inflicted Damage 4 | . . . 4 . . . . . . . . . . . . Shots . | . . . . . . . . . . . . . . . . Rammed 1 | . . . 1 . . . . . . . . . . . . Targets Rammed 1 | . . . 1 . . . . . . . . . . . . Kicked . | . . . . . . . . . . . . . . . . Crushed . | . . . . . . . . . . . . . . . . Highest Temperature 376 | 18 198 94 275 214 . 288 207 300 376 239 235 169 161 177 . Average Temperature 79 | 9 80 39 49 35 . 132 96 74 106 82 109 62 69 71 . Received Heat Transfer 1254 | . 210 44 258 . . 12 . . 198 18 63 232 84 135 . Effects 4 | . . . 1 . . 2 . . 1 . . . . . . Energy Bleed 2 | . . . 1 . . . . . 1 . . . . . . Interference 2 | . . . . . . 2 . . . . . . . . . Siege Activations . | . . . . . . . . . . . . . . . . Martial Activations . | . . . . . . . . . . . . . . . . Shielding Activations . | . . . . . . . . . . . . . . . . Robots Disrupted . | . . . . . . . . . . . . . . . . Combat Hostiles . | . . . . . . . . . . . . . . . . Robots Corrupted 1 | . . . . . . . . . . 1 . . . . . Combat Hostiles 1 | . . . . . . . . . . 1 . . . . . Parts Fried . | . . . . . . . . . . . . . . . . Impact Corruptions . | . . . . . . . . . . . . . . . . Robots Melted 1 | . . . . . . . . . 1 . . . . . . Combat Hostiles 1 | . . . . . . . . . 1 . . . . . . Parts Melted 10 | . . . . . . 1 . 1 8 . . . . . . Heat Transferred 4432 | 148 777 50 . . . 629 395 334 2099 . . . . . . Parts Sabotaged . | . . . . . . . . . . . . . . . . Parts Stolen . | . . . . . . . . . . . . . . . . Parts Stripped . | . . . . . . . . . . . . . . . . Power Chain Reactions . | . . . . . . . . . . . . . . . . Alert | -11 -10 -10 -9 -9 -7 -6 -6 -5 -5 -5 -5 -5 -4 -4 -4 ------- Run | Yrd Mat Min Mat Min Zio Pro Fac Fac Ext Cet Arc Hub Fac Upp Upp Maximum Alert Level 4 | . . . . 1 . . 1 1 4 3 2 2 . . . Low Security (%) 72 | 100 100 100 100 97 . . 96 84 5 . . 15 100 . . Level 1 16 | . . . . 2 . . 3 15 49 . 84 81 . . . Level 2 3 | . . . . . . . . . 6 24 15 3 . . . Level 3 5 | . . . . . . . . . 19 75 . . . . . Level 4 2 | . . . . . . . . . 19 . . . . . . Level 5 . | . . . . . . . . . . . . . . . . High Security . | . . . . . . . . . . . . . . . . Max Security . | . . . . . . . . . . . . . . . . Peak Influence 1248 | 10 85 25 179 210 . . 215 231 1248 784 413 427 180 . . Initial 672 | . 3 25 . 47 . . 168 30 81 672 271 112 180 . . Average 205 | 1 36 4 70 87 . . 127 106 591 733 372 308 140 . . Influence Increases 5492 | 20 225 . 603 366 . 326 428 310 1659 187 290 727 186 135 30 Destroy 0b10 Robot/C 2380 | . 160 . 380 260 . 160 120 140 660 80 80 300 20 . 20 Destroy 0b10 Robot/NC 210 | 20 15 . 30 15 . 10 15 10 45 5 30 10 5 . . Destroy Leader 406 | . 42 . 76 40 . 50 42 22 64 . . 50 10 . 10 Allied During Kill 1426 | . . . . 36 . 106 42 107 699 85 110 241 . . . Successful Hack 20 | . 8 . 8 . . . . 4 . . . . . . . Disable Machine 240 | . . . 30 . . . 45 15 45 15 30 30 30 . . Destroy Structure 270 | . . . 4 . . . 14 12 86 2 40 96 16 . . Advance Influence 150 | . . . . . . . 150 . . . . . . . . Partial Spotted 45 | . . . . . . . . . 30 . . . 15 . . Lose Combat Pursuer 345 | . . . 75 15 . . . . 30 . . . 90 135 . Influence Decreases 5440 | 15 165 65 480 489 . 296 394 206 627 708 648 679 489 136 43 Entered New Map 1623 | . 2 40 . 76 . . 12 34 87 528 408 209 189 25 13 Time Decay 2736 | 15 143 25 440 413 . 186 362 162 350 140 180 90 120 90 20 Lost Part 341 | . 20 . 40 . . 10 . . 30 . 20 20 180 11 10 Lost Ally 740 | . . . . . . 100 20 10 160 40 40 360 . 10 . Squads Dispatched 11 | . 1 . . . . . 2 1 3 . . 1 3 . . Investigation 1 | . . . . . . . . . . . . . 1 . . Extermination 4 | . . . . . . . 2 1 . . . . 1 . . Reinforcement 4 | . 1 . . . . . . . 2 . . . 1 . . Assault 1 | . . . . . . . . . 1 . . . . . . Garrison 1 | . . . . . . . . . . . . 1 . . . Intercept . | . . . . . . . . . . . . . . . . Searches Triggered . | . . . . . . . . . . . . . . . . Construction Impeded 1 | . . . . . . . . . 1 . . . . . . Haulers Reinforced 1 | . . . . . . . . . . . . . 1 . . Active Scanning Responses . | . . . . . . . . . . . . . . . . Cargo Convoy Interrupts . | . . . . . . . . . . . . . . . . Stealth | -11 -10 -10 -9 -9 -7 -6 -6 -5 -5 -5 -5 -5 -4 -4 -4 --------- Run | Yrd Mat Min Mat Min Zio Pro Fac Fac Ext Cet Arc Hub Fac Upp Upp Distress Signals 12 | . 1 . 4 . . . 2 1 1 . . 3 . . . Communications Jammed 131 | . . . . . . . . . . . . 131 . . . Distress Signals 131 | . . . . . . . . . . . . 131 . . . Times Spotted 197 | . 12 8 27 13 . 11 8 4 38 5 17 13 15 22 4 Peak Tracking Total 14 | . 4 14 5 3 . 4 3 2 7 5 2 6 7 9 4 Tactical Retreats 14 | . . 2 4 1 . . . . 2 . . . 1 4 . Traps | -11 -10 -10 -9 -9 -7 -6 -6 -5 -5 -5 -5 -5 -4 -4 -4 ------- Run | Yrd Mat Min Mat Min Zio Pro Fac Fac Ext Cet Arc Hub Fac Upp Upp Traps Triggered 7 | . 2 . 2 . . . . . 3 . . . . . . Indirectly . | . . . . . . . . . . . . . . . . Trap Hack Attempts . | . . . . . . . . . . . . . . . . Triggered . | . . . . . . . . . . . . . . . . Disarmed . | . . . . . . . . . . . . . . . . Reprogrammed . | . . . . . . . . . . . . . . . . Reused . | . . . . . . . . . . . . . . . . Traps Extracted . | . . . . . . . . . . . . . . . . Installed . | . . . . . . . . . . . . . . . . Triggered . | . . . . . . . . . . . . . . . . Machines | -11 -10 -10 -9 -9 -7 -6 -6 -5 -5 -5 -5 -5 -4 -4 -4 ---------- Run | Yrd Mat Min Mat Min Zio Pro Fac Fac Ext Cet Arc Hub Fac Upp Upp Machines Disabled 19 | . . . 2 . . . 3 1 6 1 2 2 2 . . Max in Single Turn 1 | . . . 1 . . . 1 1 1 1 1 1 1 . . Network Hub 1 | . . . . . . . . . . . . 1 . . . Machines Repaired . | . . . . . . . . . . . . . . . . Machines Dismantled 4 | . . . . . . . . . 2 1 . 1 . . . Machines Sabotaged . | . . . . . . . . . . . . . . . . Overloaded Fab Kills . | . . . . . . . . . . . . . . . . Hacking | -11 -10 -10 -9 -9 -7 -6 -6 -5 -5 -5 -5 -5 -4 -4 -4 --------- Run | Yrd Mat Min Mat Min Zio Pro Fac Fac Ext Cet Arc Hub Fac Upp Upp Machines Accessed 17 | . 1 . 8 . . . 1 2 3 . . . 2 . . Terminals 12 | . 1 . 7 . . . . 1 3 . . . . . . Fabricators 2 | . . . . . . . . . . . . . 2 . . Repair Stations . | . . . . . . . . . . . . . . . . Recycling Units 1 | . . . . . . . . 1 . . . . . . . Scanalyzers 2 | . . . 1 . . . 1 . . . . . . . . Garrison Access . | . . . . . . . . . . . . . . . . Total Hacks 36 | . 3 . 21 . . . 2 3 4 . . . 3 . . Successful 17 | . 2 . 10 . . . 1 1 2 . . . 1 . . Failed 17 | . 1 . 10 . . . . 2 2 . . . 2 . . Catastrophic 5 | . . . 3 . . . . . 1 . . . 1 . . Database Lockouts 2 | . . . 1 . . . 1 . . . . . . . . Manual 105 | . 3 . 19 . . . 12 16 9 1 . 13 32 . . Terminals 27 | . 3 . 19 . . . . 1 4 . . . . . . Fabricators 3 | . . . . . . . . . . . . . 3 . . Repair Stations . | . . . . . . . . . . . . . . . . Recycling Units 2 | . . . . . . . . 2 . . . . . . . Scanalyzers 4 | . . . 2 . . . 2 . . . . . . . . Garrison Access . | . . . . . . . . . . . . . . . . Terminal Hacks 7 | . 2 . 2 . . . . 1 2 . . . . . . Open Door 3 | . . . . . . . . 1 2 . . . . . . Branch Access Points 1 | . 1 . . . . . . . . . . . . . . Zone Layout 3 | . 1 . 2 . . . . . . . . . . . . Fabricator Hacks 1 | . . . . . . . . . . . . . 1 . . Network Status 1 | . . . . . . . . . . . . . 1 . . Repair Station Hacks . | . . . . . . . . . . . . . . . . Recycling Unit Hacks . | . . . . . . . . . . . . . . . . Scanalyzer 2 | . . . 1 . . . 1 . . . . . . . . Retrieve Study 2 | . . . 1 . . . 1 . . . . . . . . Garrison Access Hacks . | . . . . . . . . . . . . . . . . Unauthorized Hacks 7 | . . . 7 . . . . . . . . . . . . Terminals 7 | . . . 7 . . . . . . . . . . . . Botnet 1 | . . . 1 . . . . . . . . . . . . Skim 6 | . . . 6 . . . . . . . . . . . . Fabricators . | . . . . . . . . . . . . . . . . Repair Stations . | . . . . . . . . . . . . . . . . Recycling Units . | . . . . . . . . . . . . . . . . Scanalyzers . | . . . . . . . . . . . . . . . . Garrison Access . | . . . . . . . . . . . . . . . . Data Cores Recovered 2 | . . . . . . . . 1 1 . . . . . . Used . | . . . . . . . . . . . . . . . . Hacking Detections 14 | . 1 . 7 . . . . 2 2 1 . . 1 . . Full Trace Events 1 | . . . . . . . . . . . . . 1 . . Feedback Events . | . . . . . . . . . . . . . . . . Feedback Blocked . | . . . . . . . . . . . . . . . . Robot Schematics Acquired 7 | . . . . . . . . . 4 . . 3 . . . Robots Built . | . . . . . . . . . . . . . . . . Authchips . | . . . . . . . . . . . . . . . . Time . | . . . . . . . . . . . . . . . . Total Robot Build Rating . | . . . . . . . . . . . . . . . . Part Schematics Acquired 9 | . . . . . . . . . . . . . 9 . . Parts Built . | . . . . . . . . . . . . . . . . Authchips . | . . . . . . . . . . . . . . . . Time . | . . . . . . . . . . . . . . . . Total Part Build Rating . | . . . . . . . . . . . . . . . . Part Studies Acquired 2 | . . . 1 . . . 1 . . . . . . . . Parts Repaired . | . . . . . . . . . . . . . . . . Time . | . . . . . . . . . . . . . . . . Parts Recycled . | . . . . . . . . . . . . . . . . Recycled Matter . | . . . . . . . . . . . . . . . . Retrieved Matter . | . . . . . . . . . . . . . . . . Retrieved Components . | . . . . . . . . . . . . . . . . Parts Scanalyzed . | . . . . . . . . . . . . . . . . Part Schematics Acquired . | . . . . . . . . . . . . . . . . Parts Damaged . | . . . . . . . . . . . . . . . . Bothacking | -11 -10 -10 -9 -9 -7 -6 -6 -5 -5 -5 -5 -5 -4 -4 -4 ------------ Run | Yrd Mat Min Mat Min Zio Pro Fac Fac Ext Cet Arc Hub Fac Upp Upp Used RIF Installer . | . . . . . . . . . . . . . . . . Robots Hacked 5 | . . . . . . . . 1 4 . . . . . . Non-combat . | . . . . . . . . . . . . . . . . Combat 5 | . . . . . . . . 1 4 . . . . . . Robot Hacks Applied 5 | . . . . . . . . 1 4 . . . . . . parse_system 5 | . . . . . . . . 1 4 . . . . . . Relay Couplers Released . | . . . . . . . . . . . . . . . . Fabnet Peak Effective % . | . . . . . . . . . . . . . . . . Robots Rewired 13 | . . . . . . . . . 13 . . . . . . Allies Hacked 1 | . . . . . . . . . 1 . . . . . . Hacks Repelled . | . . . . . . . . . . . . . . . . Allies | -11 -10 -10 -9 -9 -7 -6 -6 -5 -5 -5 -5 -5 -4 -4 -4 -------- Run | Yrd Mat Min Mat Min Zio Pro Fac Fac Ext Cet Arc Hub Fac Upp Upp Total Allies 48 | . . . . 3 4 . 6 3 23 5 . 4 . . . Largest Group 26 | . . . . 3 7 7 7 10 26 23 22 24 . . . Highest-Rated Group 1250 | . . . . 40 191 191 457 541 1250 1239 1087 1083 . . . Highest-Rated Ally 159 | . . . . 16 39 39 70 70 159 152 96 96 . . . Zionite Dispatches 8 | . . . . . . . 2 3 2 . . 1 . . . Heavy 1 | . . . . . . . . . 1 . . . . . . Light 3 | . . . . . . . 2 . 1 . . . . . . Fire 1 | . . . . . . . . . . . . 1 . . . Demo 1 | . . . . . . . . 1 . . . . . . . Offense Resupply 1 | . . . . . . . . 1 . . . . . . . Hover Resupply 1 | . . . . . . . . 1 . . . . . . . Total Orders 4 | . . . . . . . . 4 . . . . . . . STAY 2 | . . . . . . . . 2 . . . . . . . DROP 2 | . . . . . . . . 2 . . . . . . . Ally Attacks 500 | . . . . 5 . 72 37 30 168 39 24 125 . . . Total Damage 14132 | . . . . 48 . 1196 1051 488 5324 1162 824 4039 . . . Kills 70 | . . . . 1 . 8 9 6 23 4 2 17 . . . Allies Corrupted 7 | . . . . . . . . . . . . 7 . . . Allies Melted 1 | . . . . . . . . . 1 . . . . . . Intel | -11 -10 -10 -9 -9 -7 -6 -6 -5 -5 -5 -5 -5 -4 -4 -4 ------- Run | Yrd Mat Min Mat Min Zio Pro Fac Fac Ext Cet Arc Hub Fac Upp Upp Active Infowar (turns) 4162 | 25 129 . . . . 556 823 469 798 283 372 191 253 204 59 Optics 4008 | . . . . . . 556 823 469 798 283 372 191 253 204 59 Sensors 55 | . . . . . . . . . . . . . 55 . . Seismic 154 | 25 129 . . . . . . . . . . . . . . Jamming 598 | . . . . . . . . 206 . . 94 162 136 . . Robot Analysis Total . | . . . . . . . . . . . . . . . . Derelict Logs Recovered 7 | . . 1 . 1 2 2 . . . . . . . 1 . Drone Launches 6 | . . . . . . . . . . . . . . 6 . Drone Recoveries 5 | . . . . . . . . . . . . . . 5 . Zionite Intel Received 14 | . . . . . . . 2 1 1 . . 2 8 . . Main Access 1 | . . . . . . . 1 . . . . . . . . Branch Access 2 | . . . . . . . . 1 . . . . 1 . . Emergency Access 1 | . . . . . . . . . . . . . 1 . . Guard Positions 1 | . . . . . . . . . . . . . 1 . . Prototype Schematics 1 | . . . . . . . . . . . . . 1 . . Unaware Schematics 2 | . . . . . . . . . 1 . . 1 . . . Unaware Analyses 1 | . . . . . . . . . . . . . 1 . . Trap Installations 1 | . . . . . . . . . . . . 1 . . . Active Terminals 1 | . . . . . . . . . . . . . 1 . . Active Garrisons 1 | . . . . . . . . . . . . . 1 . . Depthwide Sectors/-1 2 | . . . . . . . 1 . . . . . 1 . . Exploration | -11 -10 -10 -9 -9 -7 -6 -6 -5 -5 -5 -5 -5 -4 -4 -4 ------------- Run | Yrd Mat Min Mat Min Zio Pro Fac Fac Ext Cet Arc Hub Fac Upp Upp Turns Passed 8825 | 111 345 208 1196 1104 1841 568 823 469 798 283 372 191 253 204 59 Spaces Moved 5656 | 53 158 173 510 646 1092 304 436 342 693 125 196 219 394 276 39 Core 10 | 9 . . . . . . 1 . . . . . . . . Treads 3118 | 44 158 43 217 646 1092 304 435 179 . . . . . . . Legs . | . . . . . . . . . . . . . . . . Wheels 423 | . . 130 293 . . . . . . . . . . . . Hover 2105 | . . . . . . . . 163 693 125 196 219 394 276 39 Flight . | . . . . . . . . . . . . . . . . Fastest Speed 30 | 50 160 100 100 160 160 160 165 33 33 36 48 48 30 62 66 Average Speed 113 | 141 160 114 136 160 160 160 166 104 36 37 48 48 37 69 70 Slowest Speed 650 | 160 160 160 240 160 160 165 650 186 112 48 48 48 65 70 106 Overloaded Moves . | . . . . . . . . . . . . . . . . Propulsion Burnouts . | . . . . . . . . . . . . . . . . Robots Hopped . | . . . . . . . . . . . . . . . . Potential Cave-ins . | . . . . . . . . . . . . . . . . Cave-ins Triggered . | . . . . . . . . . . . . . . . . Exploration Rate (%) 46 | 4 46 45 46 97 88 44 16 11 86 66 95 27 18 56 4 Regions Visited 15 Branch Regions 10 Pre-discovered Areas 17 | . . . 3 . 2 . 8 . . . . . 4 . . Known Exits Taken 7 | . 1 . 1 . . 1 1 1 . . . . 1 1 . Unknown Exits Taken 8 | 1 . 1 . 1 1 . . . 1 1 1 1 . . . Scrap Searched 6 | . . . . 3 1 1 . . . . . . . 1 . Spaces Dug 15 | . . . 2 . . . 3 . . . . 2 7 . 1 Terrain Destroyed 80 | . . . 3 . . . 3 . 10 . 34 21 8 . 1 Melee 10 | . . . . . . . 3 . . . . 2 4 . 1 Projectile 70 | . . . 3 . . . . . 10 . 34 19 4 . . AOE . | . . . . . . . . . . . . . . . . Terrain Rammed . | . . . . . . . . . . . . . . . . Walls Destroyed . | . . . . . . . . . . . . . . . . Machines Disabled . | . . . . . . . . . . . . . . . . Actions | -11 -10 -10 -9 -9 -7 -6 -6 -5 -5 -5 -5 -5 -4 -4 -4 --------- Run | Yrd Mat Min Mat Min Zio Pro Fac Fac Ext Cet Arc Hub Fac Upp Upp Total 7438 | 79 190 177 892 687 1188 363 506 444 1109 311 428 261 461 288 54 Wait 1067 | 3 1 . 272 16 72 35 38 35 265 122 190 5 8 3 2 Move 5641 | 52 157 172 509 645 1091 303 435 341 692 124 195 218 393 275 39 Hop . | . . . . . . . . . . . . . . . . Pick Up 114 | 12 2 . 17 5 13 6 9 16 5 7 9 3 9 1 . Fast Attach 30 | . . . . . . . . 10 12 1 . 1 4 2 . Attach 79 | 7 . 2 13 1 6 2 8 5 3 6 6 3 11 4 2 Detach 10 | . . . . 2 . . . . . 4 . . . 2 2 Swap 58 | . . 1 9 . 1 1 3 7 16 5 1 7 7 . . Drop 80 | . . . 8 1 5 4 1 23 11 8 6 3 9 1 . Fire 245 | 5 30 2 63 17 . 12 8 6 52 9 21 16 4 . . Melee 78 | . . . . . . . 4 1 29 17 . 2 16 . 9 Ram 1 | . . . 1 . . . . . . . . . . . . Kick . | . . . . . . . . . . . . . . . . Crush . | . . . . . . . . . . . . . . . . Escape Stasis 8 | . . . . . . . . . 8 . . . . . . Rewire . | . . . . . . . . . . . . . . . . Trap . | . . . . . . . . . . . . . . . . Miscellaneous 27 | . . . . . . . . . 16 8 . 3 . . . Route ------- -11/Scrapyard -10/Materials (discovered 2 exits: *Mat / *Min) -10/Mines (discovered 2 exits: *Mat / Sub) -9/Materials (discovered 7 exits: *Mat x3 / *Min x2 / [*Sto x2]) -9/Mines (discovered 4 exits: *Mat x2 / [*Exi] / [*Zio]) -7/Zion -6/Proximity Caves -6/Factory (discovered 4 exits: *Fac x4) -5/Factory (discovered 4 exits: Upp x2 / *Ext x2) -5/Extension (discovered 2 exits: *Fac / *Cet) -5/Cetus -5/Archives (discovered 3 exits: *Fac / *Hub x2) -5/Hub_04(d) -4/Factory (discovered 4 exits: [*Res x2] / *Upp x2) -4/Upper Caves -4/Upper Caves (discovered 1 exit: [*Res]) History --------- Turn | Location | Event 8 | -11/Scrapyard | Discovered new exit (range 16) 112 | -11/Scrapyard | Entered Materials 303 | -10/Materials | Build established: Mutant 359 | -10/Materials | Discovered new exit (range 6) 375 | -10/Materials | Identified exit to Mines 457 | -10/Materials | Entered Mines 467 | -10/Mines | Met a Derelict bent on vengeance 520 | -10/Mines | Assembled infested the area 549 | -10/Mines | Identified exit to Subcaves 659 | -10/Mines | Discovered new exit (range 7) 665 | -10/Mines | Entered Materials 665 | -9/Materials | Evolved 2 slots: Utility x2 837 | -9/Materials | Discovered new exit (range 14) 886 | -9/Materials | Discovered new exit (range 13) 901 | -9/Materials | Central database locked down 941 | -9/Materials | Discovered new exit (range 9) 1045 | -9/Materials | Discovered new exit (range 15) 1213 | -9/Materials | Identified exit to Materials 1638 | -9/Materials | Lost 3 parts (1p1u1w) 1690 | -9/Materials | Learned Storage trap positions 1759 | -9/Materials | Identified exit to Mines 1779 | -9/Materials | Learned location of Zion (-7) 1861 | -9/Materials | Entered Mines 1957 | -9/Mines | Learned Materials stockpile data 2045 | -9/Mines | Assisted by bots powering up and referring to "LRC-V3" 2107 | -9/Mines | Deemed a non-threat by the Exiles lab entrance 2107 | -9/Mines | Discovered new exit (range 5) 2289 | -9/Mines | Discovered exit to Materials (range 5) 2476 | -9/Mines | Discovered exit to Materials (range 12) 2538 | -9/Mines | Received a Rocket Launcher from a helpful Derelict 2687 | -9/Mines | A Derelict revealed a hidden shortcut to a safe place 2965 | -9/Mines | Entered Zion 2965 | -7/Zion | Accompanied by 3 allies 2975 | -7/Zion | Learned Factory emergency access door positions 3036 | -7/Zion | System corruption cleaned by Quarantine Array 3103 | -7/Zion | Discovered new exit (range 12) 3331 | -7/Zion | Found CR-A16's Pointy Stick 3380 | -7/Zion | Learned location of Armory (-3) 3437 | -7/Zion | Found GAL Module 3698 | -7/Zion | Learned Factory terminal intel 3762 | -7/Zion | Given A8's code to call for help 3934 | -7/Zion | Learned location of Warlord (-4) 4435 | -7/Zion | Build established: Derelict-Mutant 4454 | -7/Zion | Met Imprinter 4481 | -7/Zion | Imprinted 4483 | -7/Zion | Declared Zion's savior 4806 | -7/Zion | Entered Proximity Caves 4806 | -6/Proximity Caves | Accompanied by 7 allies 4809 | -6/Proximity Caves | Spotter reported a threat 4962 | -6/Proximity Caves | Learned Factory security intel 5009 | -6/Proximity Caves | Core integrity fell below 50% 5024 | -6/Proximity Caves | Identified exit to Factory 5280 | -6/Proximity Caves | Spotted B-75 Beast 5374 | -6/Proximity Caves | Entered Factory 5374 | -6/Factory | Accompanied by 2 allies 5374 | -6/Factory | Evolved 6 slots: Power x1, Propulsion x2, Utility x2, Weapon x1 5377 | -6/Factory | Loaded intel: 26 terminal locations 5506 | -6/Factory | Central database locked down 5584 | -6/Factory | Zion Light squad teleported in 5936 | -6/Factory | Retrieved Zion intel report: Main Access 5936 | -6/Factory | Identified exit to Factory 5982 | -6/Factory | Retrieved Zion intel report: Depthwide Sectors/-5 5983 | -6/Factory | Zion Light squad teleported in 6197 | -6/Factory | Entered another Factory area 6197 | -5/Factory | Accompanied by 7 allies 6197 | -5/Factory | Evolved 2 slots: Propulsion x2 6477 | -5/Factory | Zion Hover Resupply teleported in 6570 | -5/Factory | Retrieved Zion intel report: Branch Access 6570 | -5/Factory | Identified exit to Upper Caves 6570 | -5/Factory | Identified exit to Extension 6571 | -5/Factory | Zion Demo squad teleported in 6600 | -5/Factory | Zion Offense Resupply teleported in 6624 | -5/Factory | Found Zio. Weapon Casing 6666 | -5/Factory | Entered Extension 6666 | -5/Extension | Accompanied by 6 allies 6687 | -5/Extension | Rescued a captive Derelict 6688 | -5/Extension | Rescued a captive Derelict 6773 | -5/Extension | Rescued A7 6800 | -5/Extension | Rescued a captive Derelict 6806 | -5/Extension | Retrieved Zion intel report: Unaware Schematics 6807 | -5/Extension | Zion Light squad teleported in 6840 | -5/Extension | Spotted B-75 Beast 6846 | -5/Extension | Build established: Sprinter 7027 | -5/Extension | Destroyed B-75 Beast 7032 | -5/Extension | Spotted B-75 Beast 7054 | -5/Extension | Destroyed B-75 Beast 7091 | -5/Extension | Disrupted transfer network 7211 | -5/Extension | Rescued a captive Derelict 7229 | -5/Extension | Zion Heavy squad teleported in 7266 | -5/Extension | First assault squad dispatched 7333 | -5/Extension | Discovered new exit (range 14) 7334 | -5/Extension | Discovered new exit (range 13) 7337 | -5/Extension | Lost 6 allies 7464 | -5/Extension | Entered Cetus 7464 | -5/Cetus | Accompanied by 20 allies (A7) 7469 | -5/Cetus | Acquired a Cetus Manufacturing Module code from A7 7470 | -5/Cetus | Spotted Cetus Guard 7470 | -5/Cetus | Spotted Cetus Guard 7470 | -5/Cetus | Spotted Cetus Guard 7470 | -5/Cetus | Spotted Cetus Guard 7488 | -5/Cetus | Allies destroyed Cetus Guard 7489 | -5/Cetus | Destroyed Cetus Guard 7499 | -5/Cetus | Allies destroyed Cetus Guard 7503 | -5/Cetus | Allies destroyed Cetus Guard 7504 | -5/Cetus | Build established: Commander-Mutant 7526 | -5/Cetus | Started Cetus Manufacturing Module 7551 | -5/Cetus | Manufactured an Enhanced Grunt 7553 | -5/Cetus | Escorted A7 to Cetus Mainframe 7573 | -5/Cetus | Discovered new exit (range 21) 7576 | -5/Cetus | Manufactured an Enhanced Grunt 7601 | -5/Cetus | Manufactured an Enhanced Grunt 7626 | -5/Cetus | Manufactured an Enhanced Grunt 7651 | -5/Cetus | Manufactured an Enhanced Grunt 7666 | -5/Cetus | Murdered A7 7667 | -5/Cetus | Extracted ID and sensor layout for unrecognized location from A7's data core 7674 | -5/Cetus | System corruption reached 10% 7747 | -5/Cetus | Entered Archives 7747 | -5/Archives | Accompanied by 22 allies 7765 | -5/Archives | Discovered new exit (range 22) 7785 | -5/Archives | Discovered new exit (range 19) 7900 | -5/Archives | Discovered new exit (range 17) 8084 | -5/Archives | Build established: Commander-Gunner 8119 | -5/Archives | Entered Hub_04(d) 8119 | -5/Hub_04(d) | Accompanied by 20 allies 8129 | -5/Hub_04(d) | Zion Fire squad teleported in 8140 | -5/Hub_04(d) | Discovered new exit (range 15) 8193 | -5/Hub_04(d) | Retrieved Zion intel report: Unaware Schematics 8221 | -5/Hub_04(d) | Network Hub disabled 8241 | -5/Hub_04(d) | Retrieved Zion intel report: Trap Installations 8242 | -5/Hub_04(d) | Spotted Lightning 8242 | -5/Hub_04(d) | Spotted Lightning 8242 | -5/Hub_04(d) | Spotted Lightning 8250 | -5/Hub_04(d) | Spotted Lightning 8250 | -5/Hub_04(d) | Spotted Lightning 8253 | -5/Hub_04(d) | Garrison activated, responded to threat 8272 | -5/Hub_04(d) | Found Prototype Energy Cannon 8272 | -5/Hub_04(d) | Allies destroyed Lightning 8278 | -5/Hub_04(d) | Found Prototype Processor 8281 | -5/Hub_04(d) | Identified Exp. Targeting Computer 8284 | -5/Hub_04(d) | Destroyed Lightning 8288 | -5/Hub_04(d) | Found Prototype Device 8288 | -5/Hub_04(d) | Identified Exp. EM Shield 8291 | -5/Hub_04(d) | Found Prototype Device 8292 | -5/Hub_04(d) | Identified Exp. Phase Shifter 8310 | -5/Hub_04(d) | Entered Factory 8310 | -4/Factory | Evolved 2 slots: Propulsion x1, Utility x1 8325 | -4/Factory | Lost 20 allies 8381 | -4/Factory | Discovered new exit (range 7) 8401 | -4/Factory | Retrieved Zion intel report: Active Terminals 8426 | -4/Factory | Retrieved Zion intel report: Emergency Access 8441 | -4/Factory | Retrieved Zion intel report: Guard Positions 8492 | -4/Factory | Retrieved Zion intel report: Depthwide Sectors/-3 8493 | -4/Factory | Retrieved Zion intel report: Prototype Schematics 8504 | -4/Factory | Lost 7 parts (2p1n2u2w) 8506 | -4/Factory | Retrieved Zion intel report: Active Garrisons 8512 | -4/Factory | Retrieved Zion intel report: Unaware Analyses 8529 | -4/Factory | Spotted B-86 Titan 8531 | -4/Factory | Retrieved Zion intel report: Branch Access 8531 | -4/Factory | Identified exit to Upper Caves 8533 | -4/Factory | Discovered new exit (range 16) 8563 | -4/Factory | Entered Upper Caves 8568 | -4/Upper Caves | Identified EMDS 8580 | -4/Upper Caves | Ambushed by wild Derelicts 8582 | -4/Upper Caves | Lost 11 parts (2p4n5u) 8584 | -4/Upper Caves | Core integrity fell below 50% 8659 | -4/Upper Caves | Learned Research machine intel 8668 | -4/Upper Caves | Attracted the attention of an 0b10 checkpoint 8758 | -4/Upper Caves | Discovered new exit (range 13) 8763 | -4/Upper Caves | Attracted the attention of an 0b10 outpost 8767 | -4/Upper Caves | Identified exit to Upper Caves 8767 | -4/Upper Caves | Entered another Upper Caves area 8767 | -4/Upper Caves | Discovered new exit (range 10) 8799 | -4/Upper Caves | Core integrity fell below 20% 8826 | -4/Upper Caves | Destroyed by S-27 Virus with Autogun Last Messages --------------- 08762_ Penetrated by Slug. 08762_ Mapping Drone Bay destroyed. 08763_ Y-72 Warden: "DETECTED UNIDENTIFIED DERELICT." 08767_ Y-72 Warden: "REQUESTING BACKUP." 08767_ EXIT=IDENTIFIED: UPPER CAVES LOCATION=UPPER CAVES GOAL=ESCAPE 08767_ EXIT=FOUND 08768_ U0-YBO(k) breaks down the debris. 08770_ System corrupted: Matter fused (-5). 08784_ U0-YBO(k) breaks down the debris. 08789_ Sneak attack on U0-YBO(k). 08789_ U0-YBO(k) destroyed. 08792_ Acquired 26 matter. 08805_ S-27 Virus destroyed. 08809_ Acquired 29 matter. 08815_ EMDS destroyed. 08816_ VTOL Module fries itself beyond repair. 08818_ S-27 Virus destroyed. 08819_ Lgt. Nuclear Core fries itself beyond repair. Map ----- +----------------------------------------------------+ | ?????????????????????????????????????????????????? | | ?????????????????????????????????????????????????? | | ?????????????????????????????????????????????????? | | ?????????????????????????????????????????????????? | | ?????????????????????????????????????????????????? | | ?????????????????????????????????????????????????? | | ?????????????????????????????????????????????????? | | ?????????????????????????????????????????????????? | | ?????????????????????????????????????????????????? | | ?????????????????????????????????????????????????? | | ?????????????????????????????????????????????????? | | ?????????????????????????????????????????????????? | | ????????????????????????????#######??????????????? | | ???????????????????????????## ##?????????????? | | ??????????????????????????## #?????????????? | | ?????????????????????????## #?????????????? | | ????????????????????????## #??????????????? | | ??????????????????????### ##??????????????? | | ??????????????????????#; ## ##???????????????? | | ??????????????????????## ## #????????????????? | | ??????????????????????## ## ????????????????? | | ?????????????????????## ### ##???????????????? | | ?????????????????????# #?# #?### ##?????????? | | ?????????????????????# = ### #?????????? | | ?????????????????????# =%[ #?????????? | | ?????????????????????## @ #?????????? | | ??????????????????????##s s#### < #?????????? | | ???????????????????????#####?? ### ###?????????? | | ?????????????????????????????? #???????????????? | | ?????????????????????????????? ????????????????? | | ?????????????????????????????? ????????????????? | | ?????????????????????????????? ????????????????? | | ?????????????????????????????? ????????????????? | | ?????????????????????????????? ???????????????? | | ?????????????????????????????? ???????????????? | | ??????????????????????????????## ???????????????? | | ???????????????????????????????? ???????????????? | | ???????????????????????????????? ???????????????? | | ???????????????????????????????? ???????????????? | | ?????????????????????????????????????????????????? | | ?????????????????????????????????????????????????? | | ?????????????????????????????????????????????????? | | ?????????????????????????????????????????????????? | | ?????????????????????????????????????????????????? | | ?????????????????????????????????????????????????? | | ?????????????????????????????????????????????????? | | ?????????????????????????????????????????????????? | | ?????????????????????????????????????????????????? | | ?????????????????????????????????????????????????? | | ?????????????????????????????????????????????????? | +----------------------------------------------------+ Best States ------------- Heat Dissipation 95 Energy Generation 49 Energy Capacity 700 Matter Stores 300 Matter Capacity 300 Sight Range 22 Robot Scan Range 16 Terrain Scan Density 10 Jamming Range 14 Base Temperature (-) 200 Armor Coverage 225 Resistance: EM 75 Weapon Shielding 100 Evasion (%) 68 Targeting Accuracy 12 Core Analysis 6 Recoil Reduction 5 Energy Filtering 30 Salvage Targeting 4 Defensive Hacking 11 Item Schematics ----------------- Lgt. Neutrino Core | -4/Factory | Z-intel Imp. Energy Well | -4/Factory | Z-intel Neutron Missile Launcher | -4/Factory | Z-intel Enh. Coil Gun | -4/Factory | Z-intel Fusion Reactor | -4/Factory | Z-intel Biomechanical Wings | -4/Factory | Z-intel Prc. Matter Filter | -4/Factory | Z-intel Adv. Plasma Rifle | -4/Factory | Z-intel Imp. Lightning Gun | -4/Factory | Z-intel Robot Schematics ------------------ A-15 Conveyor | -5/Extension | Z-intel B-60 Warrior | -5/Extension | Z-intel H-66 Slayer | -5/Extension | Z-intel S-27 Virus | -5/Extension | Z-intel Y-54 Guardian | -5/Hub_04(d) | Z-intel L-41 Fighter | -5/Hub_04(d) | Z-intel R-06 Scavenger | -5/Hub_04(d) | Z-intel Fabricated ------------ Nothing Repaired ---------- Nothing Studied --------- Lgt. Treads | -9/Materials | Hacked Gatling Laser | -6/Factory | Hacked Alien Tech Used ----------------- None Achievements -------------- Better Safe Than Exploded Challenges ------------ None Game ------ Seed ShieldZeronetPlating Manual? 0 Play Time 01:11:15 Cumulative 467.3 hours Start 2025.11.04 @ 02:53:01 End 2025.11.04 @ 04:12:04 Sessions 2 Manual Loads 0 Difficulty Rogue Special Mode None Game No. 585 Rogue 585 Adventurer 0 Explorer 0 Win Type - Total 14 Types 6/0/2/2/1/0/2/1/0/0 Lore% 90 Gallery% 85 Achievement% 63 Wizard Run 0 Options --------- Layout 0 ASCII 0 Keyboard 0 Movement Mouse Keybinds 0 Fullscreen 1 Font 24/Terminus Map View 76x50 Zoom Use 0% Tactical HUD 1 Map Filters NONE Filters NONE Steam 1 RUN: d058c05a-d7d8-4dd4-baed-031681d9a253